No. of Trans,Dept Family ,Entity Name,Cert Date,Supplier Name,Reference,Gross Amt,Group/Department,Type of Expenditure - Subjective Codes
1,DCMS,EH,27/03/2014,3D-RADAR,20054503,"45,278.12",Heritage Protection & Planning-Heritage Protection,Plant & Equipment > 10k
2,DCMS,EH,18/03/2014,Accent Foundation Ltd,82002701,"77,467.00",Heritage Protection & Planning-Nat. Planning & Conservation,Buildings and Monuments
3,DCMS,EH,04/03/2014,Advanced Computer Software Group,40056849,"4,374.37",Resources-IMT,Software Maintenance
4,DCMS,EH,04/03/2014,Advanced Computer Software Group,40056849,"59,725.32",Resources-IMT,Software Maintenance
5,DCMS,EH,04/03/2014,Advanced Computer Software Group,40056849,"19,089.10",Resources-IMT,Software Maintenance
6,DCMS,EH,14/03/2014,Algarkirk St Peter and St Paul PCC,82002678,"33,377.00",Heritage Protection & Planning-Nat. Planning & Conservation,POW G I & II* 10/11 Onward Rep
7,DCMS,EH,06/03/2014,Antenna Audio,40054589,"30,420.00",National Collections-Historic Properties Department,Cost of Audio Tape
8,DCMS,EH,03/03/2014,Antenna Audio,40056977,"86,091.60",National Collections-Capital Investment Programme,WIP Professional Works Advice
9,DCMS,EH,19/03/2014,Archbishops' Council,81002900,"55,000.00",Heritage Protection & Planning-Heritage Protection,Historic Environ Prog Grants
10,DCMS,EH,04/04/2014,BaileyGomm Limited,40060211,"25,402.80",National Collections-Major Conservation Projects,Fees for Professional Advice
11,DCMS,EH,04/04/2014,Banner Business Services Ltd,40059580,"31,080.00",National Collections-Curatorial Department,Stationery - Other
12,DCMS,EH,14/03/2014,Barbican Research Associates Ltd,40058596,"30,000.00",Heritage Protection & Planning-Heritage Protection,Hist Environ Prog Projects Gra
13,DCMS,EH,12/03/2014,Bereton Parochial Church Council,82002674,"42,000.00",Heritage Protection & Planning-Nat. Planning & Conservation,POW G I & II* 10/11 Onward Rep
14,DCMS,EH,24/03/2014,BETCHWORTH CASTLE,82002710,"31,373.00",Heritage Protection & Planning-Nat. Planning & Conservation,GRANTS PAYABLE HISTORIC BUILDINGS
15,DCMS,EH,24/03/2014,Birmingham City Council,82002704,"47,700.00",Heritage Protection & Planning-Nat. Planning & Conservation,Buildings and Monuments
16,DCMS,EH,24/03/2014,Birmingham City Council,82002705,"38,160.00",Heritage Protection & Planning-Nat. Planning & Conservation,Buildings and Monuments
17,DCMS,EH,04/04/2014,Bond Dickinson LLP,40060573,"82,619.04",National Advice & Information-Governance & Legal Department,Legal Fees
18,DCMS,EH,19/03/2014,Bournemouth University,81002873,"25,000.00",Heritage Protection & Planning-Heritage Protection,Maritime Grants
19,DCMS,EH,27/03/2014,Bristol City Council,82002740,"46,510.00",Heritage Protection & Planning-Nat. Planning & Conservation,Buildings and Monuments
20,DCMS,EH,27/03/2014,Bristol City Council,82002741,"26,479.00",Heritage Protection & Planning-Nat. Planning & Conservation,Buildings and Monuments
21,DCMS,EH,27/03/2014,Bristol City Council,82002742,"77,880.00",Heritage Protection & Planning-Nat. Planning & Conservation,Buildings and Monuments
22,DCMS,EH,21/03/2014,British Gas,20054376,13.19,National Collections-Historic Properties Department,Electricity
23,DCMS,EH,21/03/2014,British Gas,20054376,12.38,National Collections-Historic Properties Department,Electricity
24,DCMS,EH,21/03/2014,British Gas,20054376,17.36,National Collections-Historic Properties Department,Electricity
25,DCMS,EH,21/03/2014,British Gas,20054376,225.47,National Collections-Historic Properties Department,Electricity
26,DCMS,EH,21/03/2014,British Gas,20054376,159.16,National Collections-Historic Properties Department,Electricity
27,DCMS,EH,21/03/2014,British Gas,20054376,16.46,National Collections-Historic Properties Department,Electricity
28,DCMS,EH,21/03/2014,British Gas,20054376,14.12,National Collections-Historic Properties Department,Electricity
29,DCMS,EH,21/03/2014,British Gas,20054376,185.74,National Collections-Historic Properties Department,Electricity
30,DCMS,EH,21/03/2014,British Gas,20054376,45.47,National Collections-Historic Properties Department,Electricity
31,DCMS,EH,21/03/2014,British Gas,20054376,47.5,National Collections-Historic Properties Department,Electricity
32,DCMS,EH,21/03/2014,British Gas,20054376,17.56,National Collections-Historic Properties Department,Electricity
33,DCMS,EH,21/03/2014,British Gas,20054376,93.37,National Collections-Historic Properties Department,Electricity
34,DCMS,EH,21/03/2014,British Gas,20054376,204.06,National Collections-Historic Properties Department,Electricity
35,DCMS,EH,21/03/2014,British Gas,20054376,190.28,National Collections-Historic Properties Department,Electricity
36,DCMS,EH,21/03/2014,British Gas,20054376,18.35,National Collections-Historic Properties Department,Electricity
37,DCMS,EH,21/03/2014,British Gas,20054376,"2,111.68",National Collections-Historic Properties Department,Electricity
38,DCMS,EH,21/03/2014,British Gas,20054376,"2,471.45",National Collections-Historic Properties Department,Electricity
39,DCMS,EH,21/03/2014,British Gas,20054376,"1,139.38",National Collections-Historic Properties Department,Electricity
40,DCMS,EH,21/03/2014,British Gas,20054376,207.92,National Collections-Historic Properties Department,Electricity
41,DCMS,EH,21/03/2014,British Gas,20054376,25.11,National Collections-Historic Properties Department,Electricity
42,DCMS,EH,21/03/2014,British Gas,20054376,12.39,National Collections-Historic Properties Department,Electricity
43,DCMS,EH,21/03/2014,British Gas,20054376,59.71,National Collections-Historic Properties Department,Electricity
44,DCMS,EH,21/03/2014,British Gas,20054376,35.23,National Collections-Historic Properties Department,Electricity
45,DCMS,EH,21/03/2014,British Gas,20054376,14.56,National Collections-Historic Properties Department,Electricity
46,DCMS,EH,21/03/2014,British Gas,20054376,15.27,National Collections-Historic Properties Department,Electricity
47,DCMS,EH,21/03/2014,British Gas,20054376,10.46,National Collections-Historic Properties Department,Electricity
48,DCMS,EH,21/03/2014,British Gas,20054376,30.27,National Collections-Historic Properties Department,Electricity
49,DCMS,EH,21/03/2014,British Gas,20054376,"1,286.27",National Collections-Historic Properties Department,Electricity
50,DCMS,EH,21/03/2014,British Gas,20054376,12.38,National Collections-Historic Properties Department,Electricity
51,DCMS,EH,21/03/2014,British Gas,20054376,14.21,National Collections-Historic Properties Department,Electricity
52,DCMS,EH,21/03/2014,British Gas,20054376,16.86,National Collections-Historic Properties Department,Electricity
53,DCMS,EH,21/03/2014,British Gas,20054376,28.49,National Collections-Historic Properties Department,Electricity
54,DCMS,EH,21/03/2014,British Gas,20054376,39.32,National Collections-Historic Properties Department,Electricity
55,DCMS,EH,21/03/2014,British Gas,20054376,12.48,National Collections-Historic Properties Department,Electricity
56,DCMS,EH,21/03/2014,British Gas,20054376,51.09,National Collections-Historic Properties Department,Electricity
57,DCMS,EH,21/03/2014,British Gas,20054376,423.94,National Collections-Historic Properties Department,Electricity
58,DCMS,EH,21/03/2014,British Gas,20054376,17.07,National Collections-Historic Properties Department,Electricity
59,DCMS,EH,21/03/2014,British Gas,20054376,359.93,National Collections-Historic Properties Department,Electricity
60,DCMS,EH,21/03/2014,British Gas,20054376,205.72,National Collections-Historic Properties Department,Electricity
61,DCMS,EH,21/03/2014,British Gas,20054376,263.54,National Collections-Historic Properties Department,Electricity
62,DCMS,EH,21/03/2014,British Gas,20054376,80.81,National Collections-Historic Properties Department,Electricity
63,DCMS,EH,21/03/2014,British Gas,20054376,13.14,National Collections-Historic Properties Department,Electricity
64,DCMS,EH,21/03/2014,British Gas,20054376,10.43,National Collections-Historic Properties Department,Electricity
65,DCMS,EH,21/03/2014,British Gas,20054376,53.88,National Collections-Historic Properties Department,Electricity
66,DCMS,EH,21/03/2014,British Gas,20054376,56.62,National Collections-Historic Properties Department,Electricity
67,DCMS,EH,21/03/2014,British Gas,20054376,11.69,National Collections-Historic Properties Department,Electricity
68,DCMS,EH,21/03/2014,British Gas,20054376,342.19,National Collections-Historic Properties Department,Electricity
69,DCMS,EH,21/03/2014,British Gas,20054376,366.61,National Collections-Historic Properties Department,Electricity
70,DCMS,EH,21/03/2014,British Gas,20054376,13.73,National Collections-Historic Properties Department,Electricity
71,DCMS,EH,21/03/2014,British Gas,20054376,21.15,National Collections-Historic Properties Department,Electricity
72,DCMS,EH,21/03/2014,British Gas,20054376,20.62,National Collections-Historic Properties Department,Electricity
73,DCMS,EH,21/03/2014,British Gas,20054376,517.32,Heritage Protection & Planning-Nat. Planning & Conservation,Electricity
74,DCMS,EH,21/03/2014,British Gas,20054376,406.37,National Collections-Historic Properties Department,Electricity
75,DCMS,EH,21/03/2014,British Gas,20054376,198.36,Heritage Protection & Planning-Nat. Planning & Conservation,Electricity
76,DCMS,EH,21/03/2014,British Gas,20054376,596.77,National Collections-Historic Properties Department,Electricity
77,DCMS,EH,21/03/2014,British Gas,20054376,12.5,National Collections-Historic Properties Department,Electricity
78,DCMS,EH,21/03/2014,British Gas,20054376,-293.29,Heritage Protection & Planning-Nat. Planning & Conservation,Electricity
79,DCMS,EH,21/03/2014,British Gas,20054376,-289.13,Heritage Protection & Planning-Nat. Planning & Conservation,Electricity
80,DCMS,EH,21/03/2014,British Gas,20054376,-279.73,Heritage Protection & Planning-Nat. Planning & Conservation,Electricity
81,DCMS,EH,21/03/2014,British Gas,20054376,-17.52,National Collections-Historic Properties Department,Electricity
82,DCMS,EH,21/03/2014,British Gas,20054376,-559.88,Heritage Protection & Planning-Nat. Planning & Conservation,Electricity
83,DCMS,EH,21/03/2014,British Gas,20054376,-17.83,National Collections-Historic Properties Department,Electricity
84,DCMS,EH,21/03/2014,British Gas,20054376,-271.44,Heritage Protection & Planning-Nat. Planning & Conservation,Electricity
85,DCMS,EH,21/03/2014,British Gas,20054376,-20,National Collections-Historic Properties Department,Electricity
86,DCMS,EH,21/03/2014,British Gas,20054376,-391.36,National Collections-Historic Properties Department,Electricity
87,DCMS,EH,21/03/2014,British Gas,20054376,690.76,National Collections-Historic Properties Department,Electricity
88,DCMS,EH,21/03/2014,British Gas,20054376,"22,851.54",National Collections-Historic Properties Department,Electricity
89,DCMS,EH,21/03/2014,British Gas,20054376,46.58,National Collections-Historic Properties Department,Electricity
90,DCMS,EH,21/03/2014,British Gas,20054376,33.48,National Collections-Historic Properties Department,Electricity
91,DCMS,EH,21/03/2014,British Gas,20054376,"1,354.14",Heritage Protection & Planning-Nat. Planning & Conservation,Electricity
92,DCMS,EH,21/03/2014,British Gas,20054376,67.28,National Collections-Historic Properties Department,Electricity
93,DCMS,EH,21/03/2014,British Gas,20054376,12.29,National Collections-Historic Properties Department,Electricity
94,DCMS,EH,21/03/2014,British Gas,20054376,15.91,National Collections-Historic Properties Department,Electricity
95,DCMS,EH,21/03/2014,British Gas,20054376,253.48,National Collections-Historic Properties Department,Electricity
96,DCMS,EH,21/03/2014,British Gas,20054376,54.44,National Collections-Historic Properties Department,Electricity
97,DCMS,EH,21/03/2014,British Gas,20054376,76.87,National Collections-Historic Properties Department,Electricity
98,DCMS,EH,21/03/2014,British Gas,20054376,231.65,National Collections-Historic Properties Department,Electricity
99,DCMS,EH,21/03/2014,British Gas,20054376,83.81,National Collections-Historic Properties Department,Electricity
100,DCMS,EH,10/03/2014,Broxbourne  Borough Council,82002652,"81,713.00",Heritage Protection & Planning-Nat. Planning & Conservation,Buildings and Monuments
101,DCMS,EH,08/04/2014,C G Godfrey Ltd,40061131,"72,600.00",National Collections-Major Conservation Projects,WIP Operational Building Works
102,DCMS,EH,09/04/2014,Calder RBS,40061375,"47,460.00",Resources-Human Resources,Refurb/Fitting Out > 50k
103,DCMS,EH,17/03/2014,Capita Secure Information Solutions Ltd,40058535,"65,131.20",Resources-IMT,System Developments <50k
104,DCMS,EH,20/03/2014,Capita Secure Information Solutions Ltd,40058542,"3,600.00",National Collections-Capital Investment Programme,Fees for Professional Advice
105,DCMS,EH,20/03/2014,Capita Secure Information Solutions Ltd,40058542,"22,500.00",National Collections-Capital Investment Programme,Fees for Professional Advice
106,DCMS,EH,20/03/2014,Capita Secure Information Solutions Ltd,40058542,"1,800.00",National Collections-Capital Investment Programme,Plant & Equipment Hire
107,DCMS,EH,20/03/2014,Capita Secure Information Solutions Ltd,40058542,"3,320.33",National Collections-Capital Investment Programme,Fees for Professional Advice
108,DCMS,EH,20/03/2014,Capita Secure Information Solutions Ltd,40058542,303,National Collections-Capital Investment Programme,Computer Equipment <10k
109,DCMS,EH,20/03/2014,Capita Secure Information Solutions Ltd,40058542,"1,680.00",National Collections-Capital Investment Programme,Fees for Professional Advice
110,DCMS,EH,17/03/2014,Capita Secure Information Solutions Ltd,40058552,"41,353.91",Resources-IMT,ITFM
111,DCMS,EH,27/03/2014,Capita Secure Information Solutions Ltd,40059763,"251,116.75",Resources-IMT,ITFM
112,DCMS,EH,27/03/2014,Capita Secure Information Solutions Ltd,40059764,"251,116.75",Resources-IMT,ITFM
113,DCMS,EH,27/03/2014,Capita Secure Information Solutions Ltd,40060246,"30,717.86",Resources-IMT,ITFM
114,DCMS,EH,04/04/2014,Capita Secure Information Solutions Ltd,40060856,"-16,965.60",Resources-IMT,WIP Asset Purch Over 10k
115,DCMS,EH,08/04/2014,Capita Secure Information Solutions Ltd,40062061,"16,878.20",Resources-IMT,WIP Asset Purch Over 10k
116,DCMS,EH,08/04/2014,Capita Secure Information Solutions Ltd,40062061,"8,028.24",Resources-IMT,WIP Asset Purch Over 10k
117,DCMS,EH,08/04/2014,Capita Secure Information Solutions Ltd,40062061,"2,376.00",Resources-IMT,WIP Asset Purch Over 10k
118,DCMS,EH,08/04/2014,Capita Secure Information Solutions Ltd,40062061,"3,119.16",Resources-IMT,WIP Asset Purch Over 10k
119,DCMS,EH,08/04/2014,Capita Secure Information Solutions Ltd,40062061,"11,914.80",Resources-IMT,WIP Asset Purch Over 10k
120,DCMS,EH,08/04/2014,Capita Secure Information Solutions Ltd,40062061,396,Resources-IMT,WIP Asset Purch Over 10k
121,DCMS,EH,08/04/2014,Capita Secure Information Solutions Ltd,40062061,178.2,Resources-IMT,WIP Asset Purch Over 10k
122,DCMS,EH,18/03/2014,CB Richard Ellis Ltd,40058444,"79,175.00",Resources-Office Estate,Rent - Operating Leases
123,DCMS,EH,18/03/2014,CB Richard Ellis Ltd,40058444,"24,172.00",Resources-Office Estate,Building Service Charges
124,DCMS,EH,18/03/2014,CB Richard Ellis Ltd,40058445,"63,902.00",Resources-Office Estate,Building Service Charges
125,DCMS,EH,18/03/2014,CB Richard Ellis Ltd,40058445,"235,500.00",Resources-Office Estate,Rent - Operating Leases
126,DCMS,EH,19/03/2014,Centre for Sustainable Energy,81002891,"27,885.00",Heritage Protection & Planning-Heritage Protection,Historic Environ Prog Grants
127,DCMS,EH,25/03/2014,Christ Church Sowerby Bridge PCC,82002727,"64,000.00",Heritage Protection & Planning-Nat. Planning & Conservation,POW Grade 2 Repair Grant
128,DCMS,EH,05/03/2014,City Of Stoke On Trent,81002802,"30,000.00",Heritage Protection & Planning-Heritage Protection,Historic Environ Prog Grants
129,DCMS,EH,19/03/2014,Civils (UK) Ltd,40059127,"55,044.00",National Collections-Property Maintenance Programme,Planned Maintenance
130,DCMS,EH,09/04/2014,Civils (UK) Ltd,40061748,"2,940.00",National Collections-Property Maintenance Programme,Planned Maintenance
131,DCMS,EH,09/04/2014,Civils (UK) Ltd,40061748,"47,616.00",National Collections-Property Maintenance Programme,Planned Maintenance
132,DCMS,EH,09/04/2014,Civils (UK) Ltd,40061748,"12,000.00",National Collections-Property Maintenance Programme,Planned Maintenance
133,DCMS,EH,04/04/2014,Clay Interactive Ltd,40061219,"33,537.00",National Collections-Capital Investment Programme,Exhibits/Displays
134,DCMS,EH,18/03/2014,Clophill Heritage Trust,82002700,"95,075.00",Heritage Protection & Planning-Nat. Planning & Conservation,Buildings and Monuments
135,DCMS,EH,25/03/2014,Concept Displays (S.W) Ltd,40059417,"57,600.00",National Collections-Capital Investment Programme,WIP Refurbishment Works
136,DCMS,EH,25/03/2014,Concept Displays (S.W) Ltd,40059417,"1,320.00",National Collections-Capital Investment Programme,WIP Refurbishment Works
137,DCMS,EH,07/04/2014,Constantine Ltd,40061709,"38,076.00",National Collections-Capital Investment Programme,Works for Heritage Buildings
138,DCMS,EH,25/03/2014,Cornwall Council,82002732,"29,575.00",Heritage Protection & Planning-Nat. Planning & Conservation,Buildings and Monuments
139,DCMS,EH,19/03/2014,Cotswold Archaeology,40058135,"25,000.00",Heritage Protection & Planning-Heritage Protection,Maritime Commissions
140,DCMS,EH,18/03/2014,Cotswold Archaeology,40058697,"35,000.00",Heritage Protection & Planning-Heritage Protection,Hist Environ Prog Projects Gra
141,DCMS,EH,12/03/2014,Council British Arch York,81002858,"30,000.00",Heritage Protection & Planning-Heritage Protection,Historic Environ Prog Grants
142,DCMS,EH,09/04/2014,CPI Card Group - UK Limited,40060825,"49,637.16",National Collections-Marketing,Print and Production
143,DCMS,EH,02/04/2014,Croft Building and Conservation Ltd,40060296,"40,168.72",National Collections-Major Conservation Projects,Works for Heritage Buildings
144,DCMS,EH,03/04/2014,DST Output (London) Limited,40060844,"332,133.46",National Collections-Marketing,Storage & Warehousing
145,DCMS,EH,26/03/2014,ECUS Environmental Consultants,40059456,"30,000.00",Heritage Protection & Planning-Heritage Protection,Hist Environ Prog Projects Gra
146,DCMS,EH,24/03/2014,EDF,20054393,"25,509.18",Resources-Corporate,Electricity
147,DCMS,EH,07/04/2014,Electrosonic Ltd,40059102,"25,944.12",National Collections-Capital Investment Programme,WIP Professional Works Advice
148,DCMS,EH,26/03/2014,Eltek Ltd,40059733,"55,497.60",Heritage Protection & Planning-Nat. Planning & Conservation,Technical Research
149,DCMS,EH,10/03/2014,Emley Parish Church Account,82002666,"60,500.00",Heritage Protection & Planning-Nat. Planning & Conservation,POW G I & II* 10/11 Onward Rep
150,DCMS,EH,01/04/2014,Enterprise Rent A Car UK Ltd,20054569,"37,323.01",Resources-Corporate,Car Hire
151,DCMS,EH,03/04/2014,Eura Conservation Ltd,40061437,"33,484.62",National Collections-Property Maintenance Programme,Planned Maintenance
152,DCMS,EH,14/03/2014,Evolve Business Consultancy Ltd,40057595,"30,465.60",Resources-IMT,System Developments <50k
153,DCMS,EH,14/03/2014,Executors of 11th Viscount Cobham,82002690,"60,000.00",Heritage Protection & Planning-Nat. Planning & Conservation,Buildings and Monuments
154,DCMS,EH,10/03/2014,Fairhurst Ward Abbotts Ltd,40057153,"113,415.34",National Collections-Capital Investment Programme,Works for Heritage Buildings
155,DCMS,EH,28/03/2014,Fairhurst Ward Abbotts Ltd,40057966,"68,058.56",National Collections-Capital Investment Programme,WIP Operational Building Works
156,DCMS,EH,26/03/2014,Fairhurst Ward Abbotts Ltd,40059254,"157,350.37",National Collections-Capital Investment Programme,Works for Heritage Buildings
157,DCMS,EH,07/04/2014,Fairhurst Ward Abbotts Ltd,40061993,"86,184.86",National Collections-Capital Investment Programme,Works for Heritage Buildings
158,DCMS,EH,04/04/2014,Firmingers,40059514,"32,114.64",National Collections-Capital Investment Programme,WIP Professional Works Advice
159,DCMS,EH,01/04/2014,Flexiform Business Furniture Ltd,40060767,"28,254.72",Resources-IMT,Furniture and Fittings > 10k
160,DCMS,EH,10/03/2014,Frating with Thorrington PCC,82002664,"29,500.00",Heritage Protection & Planning-Nat. Planning & Conservation,POW G I & II* 10/11 Onward Rep
161,DCMS,EH,08/04/2014,Gander and White Shipping Ltd,40061947,"43,962.00",National Collections-Major Conservation Projects,Works for Heritage Buildings
162,DCMS,EH,08/04/2014,Gander and White Shipping Ltd,40061947,240,National Collections-Major Conservation Projects,Works for Heritage Buildings
163,DCMS,EH,08/04/2014,Gander and White Shipping Ltd,40061947,"5,700.00",National Collections-Major Conservation Projects,Works for Heritage Buildings
164,DCMS,EH,24/03/2014,Gateshead Council,90513836,"36,000.00",Heritage Protection & Planning-Nat. Planning & Conservation,Regional Capacity Building
165,DCMS,EH,27/03/2014,Gillards Worldwide,40058476,"39,760.49",National Collections-Historic Properties Department,Storage & Warehousing
166,DCMS,EH,10/04/2014,Gillards Worldwide,40062419,"66,128.14",National Collections-Historic Properties Department,Storage & Warehousing
167,DCMS,EH,10/03/2014,Go South Coast Ltd,40056424,"-12,646.70",National Collections-Historic Properties Department,Agency Staff
168,DCMS,EH,06/03/2014,Go South Coast Ltd,40056507,"35,220.00",National Collections-Historic Properties Department,Plant Equipment & Van Costs
169,DCMS,EH,06/03/2014,Go South Coast Ltd,40056508,"27,879.86",National Collections-Historic Properties Department,Agency Staff
170,DCMS,EH,21/03/2014,Go South Coast Ltd,40058754,"28,059.48",National Collections-Historic Properties Department,Agency Staff
171,DCMS,EH,02/04/2014,Graham Daws Associates Limited,40060954,"30,052.31",National Collections-Property Maintenance Programme,Planned Maintenance
172,DCMS,EH,19/03/2014,Green Balance,40059021,"30,000.00",Heritage Protection & Planning-Heritage Protection,Hist Environ Prog Projects Gra
173,DCMS,EH,31/03/2014,Greenfold Systems Ltd,40059969,"37,626.00",National Collections-Capital Investment Programme,WIP Asset Purch Over 10k
174,DCMS,EH,26/03/2014,Gristwood & Toms Ltd,40059928,"39,866.40",National Collections-Property Maintenance Programme,Materials
175,DCMS,EH,26/03/2014,Ground Control Ltd,40058505,"8,676.00",National Collections-Property Maintenance Programme,Annual Cyclical Work Grounds
176,DCMS,EH,26/03/2014,Ground Control Ltd,40058505,"1,944.00",National Collections-Property Maintenance Programme,Annual Cyclical Work Grounds
177,DCMS,EH,26/03/2014,Ground Control Ltd,40058505,"5,568.00",National Collections-Property Maintenance Programme,Annual Cyclical Work Grounds
178,DCMS,EH,26/03/2014,Ground Control Ltd,40058505,"1,128.00",National Collections-Property Maintenance Programme,Annual Cyclical Work Grounds
179,DCMS,EH,26/03/2014,Ground Control Ltd,40058505,324,National Collections-Property Maintenance Programme,Annual Cyclical Work Grounds
180,DCMS,EH,26/03/2014,Ground Control Ltd,40058505,"2,820.00",National Collections-Property Maintenance Programme,Annual Cyclical Work Grounds
181,DCMS,EH,26/03/2014,Ground Control Ltd,40058505,"7,920.00",National Collections-Property Maintenance Programme,Planned Maintenance
182,DCMS,EH,26/03/2014,Ground Control Ltd,40058505,816,National Collections-Property Maintenance Programme,Annual Cyclical Work Grounds
183,DCMS,EH,26/03/2014,Ground Control Ltd,40058505,732,National Collections-Property Maintenance Programme,Annual Cyclical Work Grounds
184,DCMS,EH,04/04/2014,Guildford Borough Council - Bus. Rates,20054726,"58,322.00",Resources-Office Estate,Rates & CILOR
185,DCMS,EH,20/03/2014,Hadrian's Wall Trust,90513828,"46,784.00",Heritage Protection & Planning-Nat. Planning & Conservation,Regional Capacity Building
186,DCMS,EH,20/03/2014,Harlow Property Management Ltd,40059166,"54,750.00",Resources-Office Estate,Rent - Operating Leases
187,DCMS,EH,31/03/2014,Hasselblad UK Limited,40060544,"3,830.10",National Collections-Curatorial Department,Plant & Equipment > 10k
188,DCMS,EH,31/03/2014,Hasselblad UK Limited,40060544,"27,234.00",National Collections-Curatorial Department,Plant & Equipment > 10k
189,DCMS,EH,24/03/2014,Hilton Hall Limited,82002716,"56,071.00",Heritage Protection & Planning-Nat. Planning & Conservation,Buildings and Monuments
190,DCMS,EH,03/03/2014,"Historic Environment, Cornwall Council",40056728,"30,000.00",Heritage Protection & Planning-Heritage Protection,Hist Environ Prog Projects Gra
191,DCMS,EH,07/03/2014,Historic Property Restoration Ltd,40057486,"9,424.91",National Collections-Property Maintenance Programme,Responsive Repairs M & E
192,DCMS,EH,07/03/2014,Historic Property Restoration Ltd,40057486,"1,589.27",National Collections-Property Maintenance Programme,Planned Maintenance
193,DCMS,EH,07/03/2014,Historic Property Restoration Ltd,40057486,734.14,National Collections-Property Maintenance Programme,Responsive Maint Building
194,DCMS,EH,07/03/2014,Historic Property Restoration Ltd,40057486,488.33,National Collections-Property Maintenance Programme,Responsive Repairs M & E
195,DCMS,EH,07/03/2014,Historic Property Restoration Ltd,40057486,225.24,National Collections-Property Maintenance Programme,Leased Accomodation Maint
196,DCMS,EH,07/03/2014,Historic Property Restoration Ltd,40057486,"10,891.34",National Collections-Property Maintenance Programme,Planned Maintenance
197,DCMS,EH,07/03/2014,Historic Property Restoration Ltd,40057486,"13,621.90",National Collections-Property Maintenance Programme,Responsive Maint Building
198,DCMS,EH,07/03/2014,Historic Property Restoration Ltd,40057487,"1,483.90",National Collections-Property Maintenance Programme,Annual Cyclical Works-Building
199,DCMS,EH,07/03/2014,Historic Property Restoration Ltd,40057487,"1,580.16",National Collections-Property Maintenance Programme,Leased Accomodation Maint
200,DCMS,EH,07/03/2014,Historic Property Restoration Ltd,40057487,421.1,National Collections-Property Maintenance Programme,Annual Cyclical Work M & E
201,DCMS,EH,07/03/2014,Historic Property Restoration Ltd,40057487,"19,964.52",National Collections-Property Maintenance Programme,Annual Cyclical Work M & E
202,DCMS,EH,07/03/2014,Historic Property Restoration Ltd,40057487,"1,917.77",National Collections-Property Maintenance Programme,Annual Cyclical Works-Building
203,DCMS,EH,25/03/2014,Historic Property Restoration Ltd,40059724,"61,253.05",National Collections-Property Maintenance Programme,Annual Cyclical Works-Building
204,DCMS,EH,25/03/2014,Historic Property Restoration Ltd,40059724,"29,553.62",National Collections-Property Maintenance Programme,Annual Cyclical Work M & E
205,DCMS,EH,25/03/2014,Historic Property Restoration Ltd,40059724,733.49,National Collections-Property Maintenance Programme,Annual Cyclical Work M & E
206,DCMS,EH,25/03/2014,Historic Property Restoration Ltd,40059724,"16,290.48",National Collections-Property Maintenance Programme,Annual Cyclical Works-Building
207,DCMS,EH,25/03/2014,Historic Property Restoration Ltd,40059725,"4,037.77",National Collections-Property Maintenance Programme,Planned Maintenance
208,DCMS,EH,25/03/2014,Historic Property Restoration Ltd,40059725,"13,868.74",National Collections-Property Maintenance Programme,Responsive Maint Building
209,DCMS,EH,25/03/2014,Historic Property Restoration Ltd,40059725,808.28,National Collections-Property Maintenance Programme,Responsive Maint Building
210,DCMS,EH,25/03/2014,Historic Property Restoration Ltd,40059725,"11,717.96",National Collections-Property Maintenance Programme,Responsive Repairs M & E
211,DCMS,EH,25/03/2014,Historic Property Restoration Ltd,40059725,175.51,National Collections-Property Maintenance Programme,Responsive Repairs M & E
212,DCMS,EH,25/03/2014,Historic Property Restoration Ltd,40059725,877.5,National Collections-Property Maintenance Programme,Leased Accomodation Maint
213,DCMS,EH,25/03/2014,Historic Property Restoration Ltd,40059725,"41,400.90",National Collections-Property Maintenance Programme,Planned Maintenance
214,DCMS,EH,08/04/2014,Historic Property Restoration Ltd,40062028,"44,418.56",National Collections-Property Maintenance Programme,Annual Cyclical Works-Building
215,DCMS,EH,08/04/2014,Historic Property Restoration Ltd,40062028,"5,029.22",National Collections-Property Maintenance Programme,Annual Cyclical Works-Building
216,DCMS,EH,08/04/2014,Historic Property Restoration Ltd,40062028,"29,235.32",National Collections-Property Maintenance Programme,Annual Cyclical Work M & E
217,DCMS,EH,08/04/2014,Historic Property Restoration Ltd,40062028,304.07,National Collections-Property Maintenance Programme,Annual Cyclical Work M & E
218,DCMS,EH,08/04/2014,Historic Property Restoration Ltd,40062028,"2,367.08",National Collections-Property Maintenance Programme,Leased Accomodation Maint
219,DCMS,EH,07/04/2014,Historic Property Restoration Ltd,40062177,"15,681.59",National Collections-Property Maintenance Programme,Planned Maintenance
220,DCMS,EH,07/04/2014,Historic Property Restoration Ltd,40062177,"1,459.80",National Collections-Property Maintenance Programme,Leased Accomodation Maint
221,DCMS,EH,07/04/2014,Historic Property Restoration Ltd,40062177,"9,138.66",National Collections-Property Maintenance Programme,Responsive Repairs M & E
222,DCMS,EH,07/04/2014,Historic Property Restoration Ltd,40062177,"1,180.49",National Collections-Property Maintenance Programme,Responsive Maint Building
223,DCMS,EH,07/04/2014,Historic Property Restoration Ltd,40062177,"8,047.13",National Collections-Property Maintenance Programme,Responsive Maint Building
224,DCMS,EH,07/04/2014,Historic Property Restoration Ltd,40062177,"3,004.51",National Collections-Property Maintenance Programme,Planned Maintenance
225,DCMS,EH,24/03/2014,Huddersfield Parish Council,82002718,"77,000.00",Heritage Protection & Planning-Nat. Planning & Conservation,POW G I & II* 10/11 Onward Rep
226,DCMS,EH,18/03/2014,Hutchinson Environmental Solutions Ltd,40057836,"2,564.57",National Collections-Property Maintenance Programme,Planned Maintenance
227,DCMS,EH,18/03/2014,Hutchinson Environmental Solutions Ltd,40057836,"14,385.88",National Collections-Major Conservation Projects,WIP Operational Building Works
228,DCMS,EH,18/03/2014,Hutchinson Environmental Solutions Ltd,40057836,"15,207.52",National Collections-Major Conservation Projects,Works for Heritage Buildings
229,DCMS,EH,28/03/2014,Illustrated London News Ltd,40058429,"1,256.40",National Collections-Marketing,Marketing Fulfilment
230,DCMS,EH,28/03/2014,Illustrated London News Ltd,40058429,960,National Collections-Marketing,Print and Production
231,DCMS,EH,28/03/2014,Illustrated London News Ltd,40058429,"26,774.40",National Collections-Marketing,Print and Production
232,DCMS,EH,28/03/2014,Illustrated London News Ltd,40058429,"16,590.00",National Collections-Marketing,Marketing Creative
233,DCMS,EH,28/03/2014,Illustrated London News Ltd,40058432,"1,800.00",National Collections-Marketing,Print and Production
234,DCMS,EH,28/03/2014,Illustrated London News Ltd,40058432,"6,950.40",National Collections-Marketing,Consumer Photography
235,DCMS,EH,28/03/2014,Illustrated London News Ltd,40058432,"19,110.00",National Collections-Marketing,Digital
236,DCMS,EH,28/03/2014,Illustrated London News Ltd,40058432,"45,412.80",National Collections-Marketing,Marketing Creative
237,DCMS,EH,28/03/2014,Illustrated London News Ltd,40058432,"36,061.20",National Collections-Marketing,Print and Production
238,DCMS,EH,05/03/2014,Ironbridge Gorge Museum Trust Ltd,90513812,"30,942.00",Heritage Protection & Planning-Nat. Planning & Conservation,National Capacity Building
239,DCMS,EH,21/03/2014,J. Tomlinson Ltd,40058240,"140,532.05",National Collections-Capital Investment Programme,WIP Operational Building Works
240,DCMS,EH,04/04/2014,J. Tomlinson Ltd,40061118,"78,000.00",National Collections-Capital Investment Programme,WIP Operational Building Works
241,DCMS,EH,04/04/2014,J. Tomlinson Ltd,40061118,"71,450.40",National Collections-Capital Investment Programme,WIP Operational Building Works
242,DCMS,EH,04/04/2014,J. Tomlinson Ltd,40061118,"87,930.00",National Collections-Capital Investment Programme,WIP Operational Building Works
243,DCMS,EH,10/03/2014,Jones Lang LaSalle Limited,40057858,"22,747.50",Resources-Office Estate,Rent - Operating Leases
244,DCMS,EH,10/03/2014,Jones Lang LaSalle Limited,40057858,"8,168.10",Resources-Office Estate,Building Service Charges
245,DCMS,EH,17/03/2014,K3 Retail & Business Solutions,40057811,"31,176.00",Resources-IMT,Equipment <10k
246,DCMS,EH,04/04/2014,K3 Retail & Business Solutions,40061420,"106,560.00",Resources-IMT,Equipment <10k
247,DCMS,EH,17/03/2014,Knight Frank LLP,40058343,"19,647.66",Resources-Office Estate,Building Service Charges
248,DCMS,EH,17/03/2014,Knight Frank LLP,40058343,"45,353.70",Resources-Office Estate,Rent - Operating Leases
249,DCMS,EH,04/04/2014,LB Camden - Business Rates,20054767,"637,540.00",Resources-Office Estate,Rates & CILOR
250,DCMS,EH,03/03/2014,Leach Colour,40054960,"90,606.90",National Collections-Capital Investment Programme,"WIP Exhib, Displays & Fit Out"
251,DCMS,EH,17/03/2014,Leach Colour,40056901,"116,115.16",National Collections-Capital Investment Programme,"WIP Exhib, Displays & Fit Out"
252,DCMS,EH,08/04/2014,Leach Colour,40062027,"101,151.14",National Collections-Capital Investment Programme,"WIP Exhib, Displays & Fit Out"
253,DCMS,EH,07/04/2014,Linney Cooper Ltd,40061839,"32,730.32",National Collections-Capital Investment Programme,WIP Refurbishment Works
254,DCMS,EH,27/03/2014,London Borough of Camden,82002748,"29,750.00",Heritage Protection & Planning-Nat. Planning & Conservation,Buildings and Monuments
255,DCMS,EH,27/03/2014,London Borough of Hounslow,82002756,"46,337.00",Heritage Protection & Planning-Nat. Planning & Conservation,Buildings and Monuments
256,DCMS,EH,25/03/2014,Lorne Stewart PLC,40059608,"12,000.01",National Collections-Major Conservation Projects,Works for Heritage Buildings
257,DCMS,EH,25/03/2014,Lorne Stewart PLC,40059608,"20,900.82",National Collections-Major Conservation Projects,WIP Operational Building Works
258,DCMS,EH,07/03/2014,Lyme Bay Cider Company Ltd,1083057,"25,855.44",National Collections-Historic Properties Department,Goods & Souvenirs Purchases
259,DCMS,EH,06/03/2014,Lyme Bay Cider Company Ltd,60002194,"25,855.44",National Collections-Historic Properties Department,Goods & Souvenirs Purchases
260,DCMS,EH,25/03/2014,Lyme Bay Cider Company Ltd,60002350,"36,936.34",National Collections-Historic Properties Department,Goods & Souvenirs Purchases
261,DCMS,EH,09/04/2014,Mainmast Conservation,40059341,"38,139.60",National Collections-Property Maintenance Programme,Planned Maintenance
262,DCMS,EH,02/04/2014,MechaTech Systems Ltd,40059238,"18,120.00",Heritage Protection & Planning-Heritage Protection,Plant & Equipment > 10k
263,DCMS,EH,02/04/2014,MechaTech Systems Ltd,40059238,"17,880.00",Heritage Protection & Planning-Heritage Protection,Plant & Equipment > 10k
264,DCMS,EH,07/04/2014,MediaCom North Ltd,40061190,"48,987.00",National Collections-Marketing,Media
265,DCMS,EH,03/04/2014,MediaCom North Ltd,40061330,"1,350.00",National Collections-Marketing,Media
266,DCMS,EH,03/04/2014,MediaCom North Ltd,40061330,"2,730.00",National Collections-Marketing,Media
267,DCMS,EH,03/04/2014,MediaCom North Ltd,40061330,"23,583.00",National Collections-Marketing,Media
268,DCMS,EH,19/03/2014,Merseyside Environmental Advisory,81002907,"30,000.00",Heritage Protection & Planning-Heritage Protection,Historic Environ Prog Grants
269,DCMS,EH,24/03/2014,Milcombe PCC,82002714,"45,000.00",Heritage Protection & Planning-Nat. Planning & Conservation,POW Grade 2 Repair Grant
270,DCMS,EH,18/03/2014,Mount St Mary's Trust,82002698,"69,106.00",Heritage Protection & Planning-Nat. Planning & Conservation,Buildings and Monuments
271,DCMS,EH,26/03/2014,Mountjoy Ltd,40058838,"156,277.31",National Collections-Capital Investment Programme,Works for Heritage Buildings
272,DCMS,EH,07/04/2014,Mountjoy Ltd,40061896,"212,713.94",National Collections-Capital Investment Programme,Works for Heritage Buildings
273,DCMS,EH,19/03/2014,Museum of London Arch Services,81002878,"95,000.00",Heritage Protection & Planning-Heritage Protection,Historic Environ Prog Grants
274,DCMS,EH,26/03/2014,National Trust,81002917,"25,000.00",Heritage Protection & Planning-Heritage Protection,Historic Environ Prog Grants
275,DCMS,EH,04/03/2014,Nu-Weld Engineering Services Ltd,40057291,"69,326.75",National Collections-Capital Investment Programme,WIP Operational Building Works
276,DCMS,EH,07/04/2014,Nu-Weld Engineering Services Ltd,40061196,"25,398.89",National Collections-Capital Investment Programme,WIP Operational Building Works
277,DCMS,EH,08/04/2014,"Ockley, Okewood & Forest Green PCC",82002771,"31,500.00",Heritage Protection & Planning-Nat. Planning & Conservation,POW G I & II* 10/11 Onward Rep
278,DCMS,EH,13/03/2014,Oldham Council,90700224,"10,000.00",Heritage Protection & Planning-Nat. Planning & Conservation,Buildings and Monuments
279,DCMS,EH,03/03/2014,Outside Studios Ltd,40055859,"43,245.60",National Collections-Capital Investment Programme,"WIP Exhib, Displays & Fit Out"
280,DCMS,EH,17/03/2014,Outside Studios Ltd,40058428,"43,222.80",National Collections-Capital Investment Programme,"WIP Exhib, Displays & Fit Out"
281,DCMS,EH,02/04/2014,Outside Studios Ltd,40061250,"4,001.22",National Collections-Capital Investment Programme,"WIP Exhib, Displays & Fit Out"
282,DCMS,EH,02/04/2014,Outside Studios Ltd,40061250,"1,500.00",National Collections-Capital Investment Programme,"WIP Exhib, Displays & Fit Out"
283,DCMS,EH,02/04/2014,Outside Studios Ltd,40061250,"16,009.20",National Collections-Capital Investment Programme,"WIP Exhib, Displays & Fit Out"
284,DCMS,EH,02/04/2014,Outside Studios Ltd,40061250,"46,578.00",National Collections-Capital Investment Programme,"WIP Exhib, Displays & Fit Out"
285,DCMS,EH,07/04/2014,Owlsworth IJP LTD,40060806,"36,246.76",Heritage Protection & Planning-Nat. Planning & Conservation,WIP Refurbishment Works
286,DCMS,EH,05/03/2014,Oxford Archaeological Unit,81002801,"30,000.00",Heritage Protection & Planning-Heritage Protection,Historic Environ Prog Grants
287,DCMS,EH,13/03/2014,Oxford Archaeological Unit Ltd,40057656,"28,000.00",Heritage Protection & Planning-Heritage Protection,Hist Environ Prog Projects Gra
288,DCMS,EH,04/04/2014,Park Communications Ltd,40058820,"26,487.60",National Collections-Marketing,Print and Production
289,DCMS,EH,24/03/2014,Parochial Church Council of Leadenham,82002711,"29,019.00",Heritage Protection & Planning-Nat. Planning & Conservation,POW G I & II* 10/11 Onward Rep
290,DCMS,EH,04/04/2014,PAYE Stonework and Restoration Ltd,40061257,"16,023.14",National Collections-Capital Investment Programme,WIP Operational Building Works
291,DCMS,EH,04/04/2014,PAYE Stonework and Restoration Ltd,40061257,"37,387.36",National Collections-Capital Investment Programme,Works for Heritage Buildings
292,DCMS,EH,04/03/2014,PCC of Antrobus,82002647,"40,500.00",Heritage Protection & Planning-Nat. Planning & Conservation,POW Grade 2 Repair Grant
293,DCMS,EH,25/03/2014,PCC of Gayton,82002725,"28,800.00",Heritage Protection & Planning-Nat. Planning & Conservation,POW G I & II* 10/11 Onward Rep
294,DCMS,EH,18/03/2014,PCC of Hockering,82002697,"69,000.00",Heritage Protection & Planning-Nat. Planning & Conservation,POW G I & II* 10/11 Onward Rep
295,DCMS,EH,10/03/2014,PCC of South Tawton,82002656,"51,500.00",Heritage Protection & Planning-Nat. Planning & Conservation,POW G I & II* 10/11 Onward Rep
296,DCMS,EH,27/03/2014,Pendle Borough Council,90513864,"100,000.00",Heritage Protection & Planning-Nat. Planning & Conservation,Partnership Grant Scheme
297,DCMS,EH,26/03/2014,Peterborough City Council,90513860,"31,154.00",Heritage Protection & Planning-Nat. Planning & Conservation,Partnership Grant Scheme
298,DCMS,EH,26/03/2014,Peterborough City Council,90513860,"1,515.00",Heritage Protection & Planning-Nat. Planning & Conservation,Partnership Grant Scheme
299,DCMS,EH,17/03/2014,Pirbright Electrical Contractors Ltd,40058311,"77,400.82",National Collections-Capital Investment Programme,WIP Operational Building Works
300,DCMS,EH,08/04/2014,Pirbright Electrical Contractors Ltd,40060891,"121,193.20",National Collections-Capital Investment Programme,WIP Operational Building Works
301,DCMS,EH,08/04/2014,Pirbright Electrical Contractors Ltd,40062269,"15,481.04",National Collections-Capital Investment Programme,WIP Operational Building Works
302,DCMS,EH,08/04/2014,Pirbright Electrical Contractors Ltd,40062269,"30,601.41",National Collections-Capital Investment Programme,WIP Operational Building Works
303,DCMS,EH,04/04/2014,PLB Projects Ltd,40059371,"68,899.20",National Collections-Capital Investment Programme,Exhibits/Displays
304,DCMS,EH,04/04/2014,PLB Projects Ltd,40059373,"71,010.00",National Collections-Capital Investment Programme,Exhibits/Displays
305,DCMS,EH,14/03/2014,Prescot Parochial Church Council,82002687,"29,500.00",Heritage Protection & Planning-Nat. Planning & Conservation,POW G I & II* 10/11 Onward Rep
306,DCMS,EH,25/03/2014,Quadron Services Ltd,40059821,"7,361.09",National Collections-Property Maintenance Programme,Annual Cyclical Works-Building
307,DCMS,EH,25/03/2014,Quadron Services Ltd,40059821,"14,275.24",National Collections-Property Maintenance Programme,Annual Cyclical Works-Building
308,DCMS,EH,25/03/2014,Quadron Services Ltd,40059821,"9,152.24",National Collections-Property Maintenance Programme,Annual Cyclical Works-Building
309,DCMS,EH,08/04/2014,Quadron Services Ltd,40061364,"30,210.78",National Collections-Property Maintenance Programme,Annual Cyclical Works-Building
310,DCMS,EH,08/04/2014,Quadron Services Ltd,40061364,128.96,National Collections-Property Maintenance Programme,Annual Cyclical Works-Building
311,DCMS,EH,04/04/2014,R Moulding and Co Salisbury Ltd,40061307,"40,112.33",National Collections-Property Maintenance Programme,Annual Cyclical Works-Building
312,DCMS,EH,10/03/2014,Ratcliffes,40057859,"283,500.00",Resources-Office Estate,Rent - Operating Leases
313,DCMS,EH,21/03/2014,Red Europe Ltd,40058612,"27,952.80",Heritage Protection & Planning-Heritage Protection,Plant & Equipment > 10k
314,DCMS,EH,04/04/2014,Red Funnel Group,40059597,"32,853.00",National Collections-Marketing,Media
315,DCMS,EH,04/04/2014,Rivermeade Signs Ltd,40058712,"46,461.60",National Collections-Capital Investment Programme,WIP Professional Works Advice
316,DCMS,EH,10/03/2014,Robert Woodhead Ltd,40057582,"186,211.66",National Collections-Capital Investment Programme,WIP Operational Building Works
317,DCMS,EH,03/04/2014,Robert Woodhead Ltd,40060624,"88,014.58",National Collections-Capital Investment Programme,WIP Operational Building Works
318,DCMS,EH,04/03/2014,Rochdale Borough Council,82002644,"136,620.00",Heritage Protection & Planning-Nat. Planning & Conservation,Buildings and Monuments
319,DCMS,EH,08/04/2014,Shoosmiths,40060644,"50,962.80",Heritage Protection & Planning-Nat. Planning & Conservation,Legal Fees
320,DCMS,EH,08/04/2014,Shoosmiths,40060644,9,Heritage Protection & Planning-Nat. Planning & Conservation,Legal Fees
321,DCMS,EH,24/03/2014,Shropshire Council,82002708,"58,400.00",Heritage Protection & Planning-Nat. Planning & Conservation,Buildings and Monuments
322,DCMS,EH,26/03/2014,Shropshire Council: Finance,40060085,"100,000.00",Heritage Protection & Planning-Nat. Planning & Conservation,Works for Heritage Buildings
323,DCMS,EH,20/03/2014,Smith & Milton Bristol Limited,40057571,"32,000.40",National Collections-Marketing,Marketing Creative
324,DCMS,EH,31/03/2014,Smith & Milton Bristol Limited,40060287,"32,000.40",National Collections-Marketing,Marketing Creative
325,DCMS,EH,02/04/2014,Smith & Milton Bristol Limited,40060310,"25,600.32",National Collections-Marketing,Marketing Creative
326,DCMS,EH,02/04/2014,Smith & Milton Bristol Limited,40060310,"6,398.88",National Collections-Marketing,Marketing Creative
327,DCMS,EH,26/03/2014,Soc for the Protection of Ancient Bdgs,81002956,"32,048.76",Heritage Protection & Planning-Heritage Protection,Historic Environ Prog Grants
328,DCMS,EH,10/04/2014,SoftwareOne UK Ltd,40062499,"38,291.38",Resources-IMT,Software Licences > 10k
329,DCMS,EH,10/04/2014,SoftwareOne UK Ltd,40062499,"37,490.40",Resources-IMT,Software Licences > 10k
330,DCMS,EH,24/03/2014,South Holland District Council,90513840,"46,473.66",Heritage Protection & Planning-Nat. Planning & Conservation,Partnership Grant Scheme
331,DCMS,EH,05/03/2014,Specialist Computer Centres plc,40057321,"136,836.00",Resources-IMT,WIP Asset Purch Over 10k
332,DCMS,EH,02/04/2014,Specialist Computer Centres plc,40060854,"21,349.80",Resources-IMT,Equipment <10k
333,DCMS,EH,02/04/2014,Specialist Computer Centres plc,40060854,"15,742.32",Resources-IMT,Equipment <10k
334,DCMS,EH,02/04/2014,Specialist Computer Centres plc,40060854,"19,303.44",Resources-IMT,Equipment <10k
335,DCMS,EH,02/04/2014,Specialist Computer Centres plc,40060854,"12,760.51",Resources-IMT,Equipment <10k
336,DCMS,EH,02/04/2014,Specialist Computer Centres plc,40060854,"2,224.40",Resources-IMT,Equipment <10k
337,DCMS,EH,02/04/2014,Specialist Computer Centres plc,40060854,"13,475.04",Resources-IMT,Equipment <10k
338,DCMS,EH,03/04/2014,Specialist Computer Centres plc,40060855,"90,416.59",Resources-IMT,WIP Asset Purch Over 10k
339,DCMS,EH,09/04/2014,Specialist Computer Centres plc,40062463,"15,728.69",Resources-IMT,Computer Equipment > 10k
340,DCMS,EH,09/04/2014,Specialist Computer Centres plc,40062463,"11,348.28",Resources-IMT,Computer Equipment <10k
341,DCMS,EH,09/04/2014,Specialist Computer Centres plc,40062463,"4,201.63",Resources-IMT,Computer Equipment <10k
342,DCMS,EH,09/04/2014,Specialist Computer Centres plc,40062463,317.2,Resources-IMT,Computer Equipment <10k
343,DCMS,EH,09/04/2014,Specialist Computer Centres plc,40062463,271.51,Resources-IMT,Computer Equipment <10k
344,DCMS,EH,09/04/2014,Specialist Computer Centres plc,40062463,775.01,Resources-IMT,Computer Equipment <10k
345,DCMS,EH,09/04/2014,Specialist Computer Centres plc,40062463,"4,970.14",Resources-IMT,Computer Equipment <10k
346,DCMS,EH,09/04/2014,Specialist Computer Centres plc,40062463,673.92,Resources-IMT,Computer Equipment <10k
347,DCMS,EH,10/03/2014,St Barnabas PCC,82002662,"71,000.00",Heritage Protection & Planning-Nat. Planning & Conservation,POW Grade 2 Repair Grant
348,DCMS,EH,14/03/2014,St Bartholomew's District Church Council,82002680,"26,000.00",Heritage Protection & Planning-Nat. Planning & Conservation,POW Grade 2 Repair Grant
349,DCMS,EH,10/03/2014,"St James' Church, Wigmore Abbey PCC",82002658,"38,000.00",Heritage Protection & Planning-Nat. Planning & Conservation,POW G I & II* 10/11 Onward Rep
350,DCMS,EH,27/03/2014,St John the Baptist Greek Orhodox Church,82002751,"31,500.00",Heritage Protection & Planning-Nat. Planning & Conservation,POW G I & II* 10/11 Onward Rep
351,DCMS,EH,18/03/2014,STYDD HALL,82002693,"41,920.00",Heritage Protection & Planning-Nat. Planning & Conservation,GRANTS PAYABLE HISTORIC BUILDINGS
352,DCMS,EH,04/04/2014,Swindon Borough Council,20054752,"243,410.00",Resources-Office Estate,Rates & CILOR
353,DCMS,EH,04/04/2014,Swindon Borough Council,20054752,"-194,728.00",Resources-Office Estate,Rates Rebates
354,DCMS,EH,04/03/2014,Sykes and Son Limited,40056040,"25,200.00",National Collections-Property Maintenance Programme,Planned Maintenance
355,DCMS,EH,06/03/2014,Sykes and Son Limited,40057588,"358,851.48",National Collections-Major Conservation Projects,Works for Heritage Buildings
356,DCMS,EH,07/04/2014,Sykes and Son Limited,40061382,"277,445.89",National Collections-Major Conservation Projects,Works for Heritage Buildings
357,DCMS,EH,08/04/2014,Sykes and Son Limited,40062373,"38,400.00",National Collections-Capital Investment Programme,Works for Heritage Buildings
358,DCMS,EH,02/04/2014,Team Force Restoration Ltd,40061254,"36,000.00",National Collections-Property Maintenance Programme,Planned Maintenance
359,DCMS,EH,26/03/2014,The Architectural Heritage Fund,90513859,"44,597.00",Heritage Protection & Planning-Nat. Planning & Conservation,National Capacity Building
360,DCMS,EH,25/03/2014,The Church of St Mary the Virgin,82002730,"39,913.00",Heritage Protection & Planning-Nat. Planning & Conservation,GRANTS PAYABLE HISTORIC BUILDINGS
361,DCMS,EH,14/03/2014,The Corporate Body of Lincoln Cathedral,82002684,"25,000.00",Heritage Protection & Planning-Nat. Planning & Conservation,Buildings and Monuments
362,DCMS,EH,14/03/2014,The Corporate Body of Lincoln Cathedral,82002691,"36,450.00",Heritage Protection & Planning-Nat. Planning & Conservation,Buildings and Monuments
363,DCMS,EH,27/03/2014,The Historic Chapels Trust,82002753,"28,122.00",Heritage Protection & Planning-Nat. Planning & Conservation,Buildings and Monuments
364,DCMS,EH,27/03/2014,The Historic Chapels Trust,82002754,"70,304.00",Heritage Protection & Planning-Nat. Planning & Conservation,Buildings and Monuments
365,DCMS,EH,14/03/2014,The National Trust,82002683,"67,653.00",Heritage Protection & Planning-Nat. Planning & Conservation,Buildings and Monuments
366,DCMS,EH,26/03/2014,The National Trust Wiltshire,90513851,"49,063.00",Heritage Protection & Planning-Nat. Planning & Conservation,National Capacity Building
367,DCMS,EH,12/03/2014,Tilton Parochial Church Council,82002670,"25,000.00",Heritage Protection & Planning-Nat. Planning & Conservation,POW G I & II* 10/11 Onward Rep
368,DCMS,EH,07/04/2014,Treasure and Son,40060226,"43,846.66",National Collections-Property Maintenance Programme,Annual Cyclical Works-Building
369,DCMS,EH,31/03/2014,Turfsoil Limited,40060202,"2,593.99",National Collections-Property Maintenance Programme,Annual Cyclical Work Grounds
370,DCMS,EH,31/03/2014,Turfsoil Limited,40060202,"2,925.54",National Collections-Property Maintenance Programme,Annual Cyclical Work Grounds
371,DCMS,EH,31/03/2014,Turfsoil Limited,40060202,"25,284.54",National Collections-Property Maintenance Programme,Annual Cyclical Work Grounds
372,DCMS,EH,31/03/2014,Turfsoil Limited,40060202,"1,724.62",National Collections-Property Maintenance Programme,Annual Cyclical Work Grounds
373,DCMS,EH,02/04/2014,Turfsoil Limited,40060549,"-18,300.90",National Collections-Property Maintenance Programme,Annual Cyclical Work Grounds
374,DCMS,EH,17/03/2014,Tymeagain Ltd,60002244,"29,778.54",National Collections-Historic Properties Department,Goods & Souvenirs Purchases
375,DCMS,EH,10/03/2014,UK Historic Building Preservation Trust,82002669,"50,000.00",Heritage Protection & Planning-Nat. Planning & Conservation,Buildings and Monuments
376,DCMS,EH,24/03/2014,UK Historic Building Preservation Trust,82002720,"98,531.00",Heritage Protection & Planning-Nat. Planning & Conservation,Buildings and Monuments
377,DCMS,EH,28/03/2014,Universal Stone Limited,40060102,"83,368.27",National Collections-Major Conservation Projects,Works for Heritage Buildings
378,DCMS,EH,07/04/2014,Universal Stone Limited,40061581,"32,189.33",National Collections-Major Conservation Projects,Works for Heritage Buildings
379,DCMS,EH,19/03/2014,University College London,81002904,"150,000.00",Heritage Protection & Planning-Heritage Protection,Historic Environ Prog Grants
380,DCMS,EH,26/03/2014,University Of Bristol,81002935,"50,000.00",Heritage Protection & Planning-Heritage Protection,Historic Environ Prog Grants
381,DCMS,EH,28/03/2014,University of Oxford,40059465,"30,000.00",National Collections-Curatorial Department,Built Environment Research
382,DCMS,EH,10/03/2014,Ushaw College,82002668,"300,000.00",Heritage Protection & Planning-Nat. Planning & Conservation,Buildings and Monuments
383,DCMS,EH,21/03/2014,Vinci Construction UK Ltd,40059462,"4,076.40",National Collections-Capital Investment Programme,WIP Operational Building Works
384,DCMS,EH,21/03/2014,Vinci Construction UK Ltd,40059462,"2,861.54",National Collections-Capital Investment Programme,Works for Heritage Buildings
385,DCMS,EH,21/03/2014,Vinci Construction UK Ltd,40059462,"16,734.00",National Collections-Capital Investment Programme,WIP Professional Works Advice
386,DCMS,EH,21/03/2014,Vinci Construction UK Ltd,40059462,"9,465.60",National Collections-Capital Investment Programme,WIP Operational Building Works
387,DCMS,EH,21/03/2014,Vinci Construction UK Ltd,40059462,"3,028.80",National Collections-Capital Investment Programme,WIP Operational Building Works
388,DCMS,EH,21/03/2014,Vinci Construction UK Ltd,40059462,175.2,National Collections-Capital Investment Programme,Works for Heritage Buildings
389,DCMS,EH,21/03/2014,Vinci Construction UK Ltd,40059462,123.6,National Collections-Capital Investment Programme,WIP Operational Building Works
390,DCMS,EH,21/03/2014,Vinci Construction UK Ltd,40059462,693.6,National Collections-Capital Investment Programme,WIP Operational Building Works
391,DCMS,EH,08/04/2014,Vitrine Systems Ltd,40058858,"39,336.00",Resources-Human Resources,Responsive Maint Building
392,DCMS,EH,25/03/2014,W H Smith and R Ensor SAP Scheme,40059669,"35,516.40",Resources-Office Estate,Rent - Operating Leases
393,DCMS,EH,25/03/2014,W H Smith and R Ensor SAP Scheme,40059676,"35,516.40",Resources-Office Estate,Rent - Operating Leases
394,DCMS,EH,12/03/2014,West Yorkshire Archaeology Service,81002826,"30,000.00",Heritage Protection & Planning-Heritage Protection,Historic Environ Prog Grants
395,DCMS,EH,12/03/2014,William Anelay Limited,40058017,"125,669.46",Heritage Protection & Planning-Nat. Planning & Conservation,Works for Heritage Buildings
396,DCMS,EH,24/03/2014,William Anelay Limited,40059337,"63,462.54",Heritage Protection & Planning-Nat. Planning & Conservation,Works for Heritage Buildings
397,DCMS,EH,26/03/2014,William Birch & Sons Ltd,40058329,"115,194.19",National Collections-Capital Investment Programme,WIP Operational Building Works
398,DCMS,EH,08/04/2014,William Birch & Sons Ltd,40062082,"131,635.65",National Collections-Capital Investment Programme,WIP Operational Building Works
399,DCMS,EH,04/04/2014,Williams Lea,40061399,"156,437.04",National Collections-Marketing,Print and Production
400,DCMS,EH,03/04/2014,Williams Lea,40061400,"92,909.60",National Collections-Marketing,Print and Production
401,DCMS,EH,03/04/2014,Willis Ltd,40061194,"172,757.97",National Collections-National Collections Centre,Insurance
402,DCMS,EH,04/04/2014,Wiltshire Council,20054613,"-289,200.00",National Collections-Historic Properties Department,Rates Rebates
403,DCMS,EH,04/04/2014,Wiltshire Council,20054613,"362,842.03",National Collections-Historic Properties Department,Rates & CILOR
404,DCMS,EH,17/03/2014,Woodscape Limited,40052777,"5,040.00",National Collections-Capital Investment Programme,WIP Refurbishment Works
405,DCMS,EH,17/03/2014,Woodscape Limited,40052777,"3,892.80",National Collections-Capital Investment Programme,WIP Refurbishment Works
406,DCMS,EH,17/03/2014,Woodscape Limited,40052777,"4,116.00",National Collections-Capital Investment Programme,WIP Refurbishment Works
407,DCMS,EH,17/03/2014,Woodscape Limited,40052777,"9,316.80",National Collections-Capital Investment Programme,WIP Refurbishment Works
408,DCMS,EH,17/03/2014,Woodscape Limited,40052777,"4,512.00",National Collections-Capital Investment Programme,WIP Refurbishment Works
409,DCMS,EH,17/03/2014,Woodscape Limited,40052777,828,National Collections-Capital Investment Programme,WIP Refurbishment Works
410,DCMS,EH,17/03/2014,Woodscape Limited,40052777,96,National Collections-Capital Investment Programme,WIP Refurbishment Works
411,DCMS,EH,10/03/2014,Wormbridge & St Devereux PCC,82002659,"31,200.00",Heritage Protection & Planning-Nat. Planning & Conservation,POW Grade 2 Repair Grant
412,DCMS,EH,26/03/2014,York Archaeology Trust,81002959,"25,000.00",Heritage Protection & Planning-Heritage Protection,Historic Environ Prog Grants
413,DCMS,EH,10/03/2014,York City Council,90700217,"45,939.00",Heritage Protection & Planning-Nat. Planning & Conservation,Regional Capacity Building
414,DCMS,EH,05/03/2014,York University,81002820,"25,000.00",Heritage Protection & Planning-Heritage Protection,Historic Environ Prog Grants
415,DCMS,EH,14/03/2014,Yorkshire Sculpture Park,82002679,"67,600.00",Heritage Protection & Planning-Nat. Planning & Conservation,Buildings and Monuments
416,DCMS,EH,02/04/2014,Zardi and Zardi Ltd,40059937,"28,884.00",National Collections-Capital Investment Programme,"WIP Exhib, Displays & Fit Out"
417,DCMS,EH,02/04/2014,Zardi and Zardi Ltd,40059937,600,National Collections-Capital Investment Programme,"WIP Exhib, Displays & Fit Out"
418,DCMS,EH,02/04/2014,Zardi and Zardi Ltd,40059937,180,National Collections-Capital Investment Programme,"WIP Exhib, Displays & Fit Out"
419,DCMS,EH,02/04/2014,Zardi and Zardi Ltd,40059937,"3,300.00",National Collections-Capital Investment Programme,"WIP Exhib, Displays & Fit Out"
